[Event "Titled Tuesday Blitz April 11 Late 2023"]
[White "Mikhalsky, Vladimir"]
[Black "Hoffmann, Asa"]
[WhiteFideId "14144352"]
[BlackFideId "2001470"]
[WhiteElo "2236"]
[BlackElo "2117"]
[Result "1-0"]
[Round "09"]
[TimeControl "180+2"]
[Date "2023.04.11"]
[WhiteClock "0:01:06"]
[BlackClock "0:00:39"]

1. d4 {[%clk 0:03:00]}  Nf6 {[%clk 0:02:58]} 2. c4 {[%clk 0:03:00]}  c5 {[%clk 0:02:58]} 3. Nf3 {[%clk 0:02:59]}  cxd4 {[%clk 0:02:57]} 4. Nxd4 {[%clk 0:02:58]}  e5 {[%clk 0:02:57]} 5. Nb5 {[%clk 0:02:58]}  d5 {[%clk 0:02:57]} 6. cxd5 {[%clk 0:02:58]}  Bb4+ {[%clk 0:02:57]} 7. Bd2 {[%clk 0:02:51]}  Bc5 {[%clk 0:02:57]} 8. N1c3 {[%clk 0:02:43]}  a6 {[%clk 0:02:54]} 9. Na3 {[%clk 0:02:42]}  b5 {[%clk 0:02:53]} 10. Nc2 {[%clk 0:02:38]}  Bb7 {[%clk 0:02:53]} 11. e4 {[%clk 0:02:34]}  b4 {[%clk 0:02:43]} 12. Na4 {[%clk 0:02:33]}  Bxf2+ {[%clk 0:02:32]} 13. Kxf2 {[%clk 0:02:30]}  Nxe4+ {[%clk 0:02:31]} 14. Kg1 {[%clk 0:02:24]}  a5 {[%clk 0:02:16]} 15. Bb5+ {[%clk 0:02:20]}  Nd7 {[%clk 0:02:16]} 16. Be3 {[%clk 0:02:13]}  O-O {[%clk 0:01:51]} 17. Bxd7 {[%clk 0:01:51]}  Qxd7 {[%clk 0:01:51]} 18. Nb6 {[%clk 0:01:51]}  Qf5 {[%clk 0:01:44]} 19. Nxa8 {[%clk 0:01:48]}  Bxa8 {[%clk 0:01:44]} 20. Qf3 {[%clk 0:01:46]}  Qg6 {[%clk 0:01:37]} 21. Rd1 {[%clk 0:01:44]}  Rd8 {[%clk 0:01:36]} 22. h4 {[%clk 0:01:40]}  Bxd5 {[%clk 0:01:35]} 23. h5 {[%clk 0:01:38]}  Qc6 {[%clk 0:01:31]} 24. Qxe4 {[%clk 0:01:33]}  h6 {[%clk 0:01:13]} 25. Qd3 {[%clk 0:01:31]}  Rd7 {[%clk 0:01:01]} 26. Ne1 {[%clk 0:01:29]}  Be6 {[%clk 0:01:00]} 27. Qe2 {[%clk 0:01:26]}  Bc4 {[%clk 0:00:55]} 28. Qc2 {[%clk 0:01:16]}  Rxd1 {[%clk 0:00:41]} 29. Qxd1 {[%clk 0:01:15]}  Qe4 {[%clk 0:00:40]} 30. Rh3 {[%clk 0:01:14]}  Bd5 {[%clk 0:00:39]} 31. Qd3 {[%clk 0:01:06]} 1-0


[Site "https://www.chess.com"]

[Event "Titled Tuesday Blitz April 11 Late 2023"]
[White "Filgueiras, Nathan Felipe"]
[Black "Spitzl, Vinzent"]
[WhiteFideId "2188562"]
[BlackFideId "12901253"]
[WhiteElo "2241"]
[BlackElo "2225"]
[Result "1/2-1/2"]
[Round "09"]
[TimeControl "180+2"]
[Date "2023.04.11"]
[WhiteClock "0:01:17"]
[BlackClock "0:00:26"]

1. e4 {[%clk 0:03:00]}  c5 {[%clk 0:02:39]} 2. Nf3 {[%clk 0:02:52]}  d6 {[%clk 0:02:39]} 3. c4 {[%clk 0:02:51]}  g6 {[%clk 0:02:35]} 4. d4 {[%clk 0:02:51]}  cxd4 {[%clk 0:02:35]} 5. Nxd4 {[%clk 0:02:52]}  Nf6 {[%clk 0:02:35]} 6. Nc3 {[%clk 0:02:52]}  Bg7 {[%clk 0:02:35]} 7. Be3 {[%clk 0:02:52]}  O-O {[%clk 0:02:35]} 8. Be2 {[%clk 0:02:53]}  Nc6 {[%clk 0:02:36]} 9. O-O {[%clk 0:02:53]}  Bd7 {[%clk 0:02:34]} 10. f4 {[%clk 0:02:50]}  Nxd4 {[%clk 0:02:34]} 11. Bxd4 {[%clk 0:02:51]}  Bc6 {[%clk 0:02:34]} 12. Bf3 {[%clk 0:02:52]}  e5 {[%clk 0:02:26]} 13. Be3 {[%clk 0:02:50]}  Rc8 {[%clk 0:02:19]} 14. b3 {[%clk 0:02:47]}  exf4 {[%clk 0:02:05]} 15. Bxf4 {[%clk 0:02:42]}  Nh5 {[%clk 0:02:05]} 16. Bd2 {[%clk 0:02:40]}  Qb6+ {[%clk 0:01:52]} 17. Kh1 {[%clk 0:02:39]}  Nf4 {[%clk 0:01:46]} 18. Bxf4 {[%clk 0:02:37]}  Bxc3 {[%clk 0:01:46]} 19. Rc1 {[%clk 0:02:38]}  Be5 {[%clk 0:01:46]} 20. Bh6 {[%clk 0:02:34]}  Rfe8 {[%clk 0:01:43]} 21. Qd2 {[%clk 0:02:33]}  Qd4 {[%clk 0:01:41]} 22. Qc2 {[%clk 0:02:32]}  Qb2 {[%clk 0:01:38]} 23. Qxb2 {[%clk 0:02:31]}  Bxb2 {[%clk 0:01:37]} 24. Rc2 {[%clk 0:02:27]}  Bg7 {[%clk 0:01:28]} 25. Bxg7 {[%clk 0:02:26]}  Kxg7 {[%clk 0:01:29]} 26. Rd2 {[%clk 0:02:26]}  Rcd8 {[%clk 0:01:27]} 27. Rfd1 {[%clk 0:02:17]}  Bxe4 {[%clk 0:01:27]} 28. Rxd6 {[%clk 0:02:17]}  Rxd6 {[%clk 0:01:26]} 29. Rxd6 {[%clk 0:02:18]}  Bxf3 {[%clk 0:01:27]} 30. gxf3 {[%clk 0:02:19]}  Re1+ {[%clk 0:01:25]} 31. Kg2 {[%clk 0:02:19]}  Re2+ {[%clk 0:01:26]} 32. Kg3 {[%clk 0:02:19]}  Rxa2 {[%clk 0:01:26]} 33. Rd7 {[%clk 0:02:20]}  b6 {[%clk 0:01:26]} 34. Rb7 {[%clk 0:02:18]}  g5 {[%clk 0:01:22]} 35. h4 {[%clk 0:02:18]}  h6 {[%clk 0:01:19]} 36. hxg5 {[%clk 0:02:18]}  hxg5 {[%clk 0:01:20]} 37. b4 {[%clk 0:02:13]}  Rc2 {[%clk 0:01:17]} 38. Rc7 {[%clk 0:02:12]}  a5 {[%clk 0:01:14]} 39. bxa5 {[%clk 0:02:12]}  bxa5 {[%clk 0:01:15]} 40. Rc5 {[%clk 0:02:11]}  Kg6 {[%clk 0:01:15]} 41. Rxa5 {[%clk 0:02:08]}  Rxc4 {[%clk 0:01:16]} 42. Ra3 {[%clk 0:02:08]}  f6 {[%clk 0:01:15]} 43. Re3 {[%clk 0:02:07]}  Rc5 {[%clk 0:01:15]} 44. Ra3 {[%clk 0:02:08]}  Kf5 {[%clk 0:01:15]} 45. Rb3 {[%clk 0:02:07]}  Ra5 {[%clk 0:01:15]} 46. Rc3 {[%clk 0:02:07]}  Ke5 {[%clk 0:01:14]} 47. Rb3 {[%clk 0:02:06]}  Rc5 {[%clk 0:01:13]} 48. Re3+ {[%clk 0:02:04]}  Kf5 {[%clk 0:01:10]} 49. Ra3 {[%clk 0:02:03]}  Rc6 {[%clk 0:01:10]} 50. Ra5+ {[%clk 0:02:03]}  Ke6 {[%clk 0:01:10]} 51. Ra3 {[%clk 0:02:03]}  Kd5 {[%clk 0:01:08]} 52. Re3 {[%clk 0:02:02]}  Re6 {[%clk 0:01:07]} 53. Rd3+ {[%clk 0:02:01]}  Ke5 {[%clk 0:01:07]} 54. Re3+ {[%clk 0:02:00]}  Kf5 {[%clk 0:01:00]} 55. Ra3 {[%clk 0:01:59]}  Re1 {[%clk 0:01:00]} 56. Ra5+ {[%clk 0:01:58]}  Kg6 {[%clk 0:01:00]} 57. Rb5 {[%clk 0:01:55]}  Ra1 {[%clk 0:01:00]} 58. Rc5 {[%clk 0:01:54]}  Ra6 {[%clk 0:00:58]} 59. Rb5 {[%clk 0:01:54]}  f5 {[%clk 0:00:55]} 60. Rc5 {[%clk 0:01:42]}  Ra3 {[%clk 0:00:54]} 61. Rc6+ {[%clk 0:01:37]}  Kh5 {[%clk 0:00:54]} 62. Kf2 {[%clk 0:01:37]}  Ra2+ {[%clk 0:00:46]} 63. Kg3 {[%clk 0:01:35]}  Ra3 {[%clk 0:00:47]} 64. Kg2 {[%clk 0:01:35]}  Ra8 {[%clk 0:00:39]} 65. Rc7 {[%clk 0:01:34]}  Rh8 {[%clk 0:00:38]} 66. Rg7 {[%clk 0:01:33]}  Kh6 {[%clk 0:00:36]} 67. Ra7 {[%clk 0:01:32]}  Rf8 {[%clk 0:00:33]} 68. Ra6+ {[%clk 0:01:32]}  Kg7 {[%clk 0:00:33]} 69. Kg3 {[%clk 0:01:31]}  Rf6 {[%clk 0:00:33]} 70. Ra7+ {[%clk 0:01:31]}  Kg6 {[%clk 0:00:33]} 71. Ra8 {[%clk 0:01:32]}  Rb6 {[%clk 0:00:33]} 72. Rg8+ {[%clk 0:01:31]}  Kf6 {[%clk 0:00:33]} 73. Rf8+ {[%clk 0:01:31]}  Kg7 {[%clk 0:00:33]} 74. Rxf5 {[%clk 0:01:31]}  Kg6 {[%clk 0:00:32]} 75. Ra5 {[%clk 0:01:31]}  Rf6 {[%clk 0:00:32]} 76. Rb5 {[%clk 0:01:31]}  Rf5 {[%clk 0:00:32]} 77. Rb6+ {[%clk 0:01:30]}  Rf6 {[%clk 0:00:32]} 78. Rb8 {[%clk 0:01:26]}  Rf4 {[%clk 0:00:32]} 79. Rg8+ {[%clk 0:01:25]}  Kh6 {[%clk 0:00:30]} 80. Rh8+ {[%clk 0:01:25]}  Kg6 {[%clk 0:00:30]} 81. Ra8 {[%clk 0:01:26]}  Kh6 {[%clk 0:00:29]} 82. Ra6+ {[%clk 0:01:26]}  Kh5 {[%clk 0:00:29]} 83. Ra8 {[%clk 0:01:23]}  Kg6 {[%clk 0:00:28]} 84. Rg8+ {[%clk 0:01:22]}  Kh6 {[%clk 0:00:28]} 85. Rh8+ {[%clk 0:01:21]}  Kg6 {[%clk 0:00:29]} 86. Ra8 {[%clk 0:01:20]}  Kh6 {[%clk 0:00:29]} 87. Ra6+ {[%clk 0:01:20]}  Kh5 {[%clk 0:00:29]} 88. Rb6 {[%clk 0:01:20]}  Rd4 {[%clk 0:00:28]} 89. Re6 {[%clk 0:01:20]}  Rf4 {[%clk 0:00:27]} 90. Rd6 {[%clk 0:01:17]}  Rb4 {[%clk 0:00:26]} 91. Rd8 {[%clk 0:01:18]}  Rf4 {[%clk 0:00:25]} 92. Rh8+ {[%clk 0:01:17]}  Kg6 {[%clk 0:00:26]} 1/2-1/2


[Site "https://www.chess.com"]

[Event "Titled Tuesday Blitz April 11 Late 2023"]
[White "Zampronha, Wladimir Camilo"]
[Black "Hajiyev, Kanan"]
[WhiteFideId "2103087"]
[BlackFideId "13404148"]
[WhiteElo "2176"]
[BlackElo "2103"]
[Result "0-1"]
[Round "09"]
[TimeControl "180+2"]
[Date "2023.04.11"]
[WhiteClock "0:00:10"]
[BlackClock "0:00:10"]

1. e4 {[%clk 0:03:00]}  c6 {[%clk 0:02:51]} 2. d4 {[%clk 0:02:59]}  d5 {[%clk 0:02:51]} 3. e5 {[%clk 0:03:00]}  a6 {[%clk 0:02:50]} 4. Nf3 {[%clk 0:02:57]}  Bg4 {[%clk 0:02:50]} 5. h3 {[%clk 0:02:52]}  Bh5 {[%clk 0:02:49]} 6. Be2 {[%clk 0:02:50]}  e6 {[%clk 0:02:49]} 7. O-O {[%clk 0:02:49]}  c5 {[%clk 0:02:49]} 8. c4 {[%clk 0:02:14]}  dxc4 {[%clk 0:02:46]} 9. Bxc4 {[%clk 0:02:10]}  cxd4 {[%clk 0:02:36]} 10. Qxd4 {[%clk 0:02:08]}  Bxf3 {[%clk 0:02:27]} 11. Qxd8+ {[%clk 0:02:08]}  Kxd8 {[%clk 0:02:27]} 12. gxf3 {[%clk 0:02:07]}  Nc6 {[%clk 0:02:28]} 13. f4 {[%clk 0:02:05]}  Rc8 {[%clk 0:02:18]} 14. Rd1+ {[%clk 0:01:55]}  Kc7 {[%clk 0:02:14]} 15. Be3 {[%clk 0:01:50]}  Nh6 {[%clk 0:02:11]} 16. Nd2 {[%clk 0:01:45]}  Nf5 {[%clk 0:02:10]} 17. Ne4 {[%clk 0:01:41]}  Nxe3 {[%clk 0:02:08]} 18. fxe3 {[%clk 0:01:40]}  Be7 {[%clk 0:02:04]} 19. Kf2 {[%clk 0:01:38]}  Rhd8 {[%clk 0:02:03]} 20. Rxd8 {[%clk 0:01:35]}  Kxd8 {[%clk 0:01:59]} 21. Rd1+ {[%clk 0:01:31]}  Ke8 {[%clk 0:01:59]} 22. Bb3 {[%clk 0:01:27]}  Na5 {[%clk 0:01:54]} 23. Rd3 {[%clk 0:01:03]}  b5 {[%clk 0:01:49]} 24. Bd1 {[%clk 0:00:45]}  Nc4 {[%clk 0:01:27]} 25. b3 {[%clk 0:00:35]}  Nb6 {[%clk 0:01:12]} 26. Nd6+ {[%clk 0:00:30]}  Bxd6 {[%clk 0:01:11]} 27. Rxd6 {[%clk 0:00:31]}  Rb8 {[%clk 0:01:09]} 28. Bf3 {[%clk 0:00:30]}  Ke7 {[%clk 0:01:08]} 29. Bc6 {[%clk 0:00:28]}  Rd8 {[%clk 0:01:04]} 30. Rxd8 {[%clk 0:00:27]}  Kxd8 {[%clk 0:01:05]} 31. Bb7 {[%clk 0:00:27]}  a5 {[%clk 0:01:05]} 32. Bc6 {[%clk 0:00:26]}  b4 {[%clk 0:01:05]} 33. Ke2 {[%clk 0:00:25]}  Kc7 {[%clk 0:01:04]} 34. Be4 {[%clk 0:00:25]}  h6 {[%clk 0:01:03]} 35. Kd3 {[%clk 0:00:26]}  Nd7 {[%clk 0:00:59]} 36. Kc4 {[%clk 0:00:25]}  Kb6 {[%clk 0:00:59]} 37. Kd4 {[%clk 0:00:23]}  Nc5 {[%clk 0:00:46]} 38. Bh7 {[%clk 0:00:20]}  f6 {[%clk 0:00:27]} 39. exf6 {[%clk 0:00:15]}  gxf6 {[%clk 0:00:28]} 40. Bg8 {[%clk 0:00:16]}  Kc6 {[%clk 0:00:29]} 41. Kc4 {[%clk 0:00:16]}  e5 {[%clk 0:00:26]} 42. fxe5 {[%clk 0:00:15]}  fxe5 {[%clk 0:00:27]} 43. Bd5+ {[%clk 0:00:14]}  Kb6 {[%clk 0:00:25]} 44. Bf3 {[%clk 0:00:13]}  e4 {[%clk 0:00:23]} 45. Bg2 {[%clk 0:00:14]}  Nd3 {[%clk 0:00:16]} 46. Bxe4 {[%clk 0:00:11]}  Nc1 {[%clk 0:00:17]} 47. Bb1 {[%clk 0:00:09]}  Ne2 {[%clk 0:00:15]} 48. e4 {[%clk 0:00:08]}  Nc3 {[%clk 0:00:16]} 49. Bd3 {[%clk 0:00:07]}  Nxa2 {[%clk 0:00:16]} 50. Kd5 {[%clk 0:00:07]}  Nc3+ {[%clk 0:00:16]} 51. Kd6 {[%clk 0:00:07]}  a4 {[%clk 0:00:09]} 52. bxa4 {[%clk 0:00:06]}  b3 {[%clk 0:00:10]} 53. e5 {[%clk 0:00:06]}  Nxa4 {[%clk 0:00:09]} 54. e6 {[%clk 0:00:05]}  Nc5 {[%clk 0:00:07]} 55. e7 {[%clk 0:00:06]}  Nxd3 {[%clk 0:00:06]} 56. e8=Q {[%clk 0:00:06]}  Ka5 {[%clk 0:00:05]} 57. Qb8 {[%clk 0:00:07]}  Nb4 {[%clk 0:00:05]} 58. Kc5 {[%clk 0:00:06]}  Na6+ {[%clk 0:00:04]} 59. Kc4 {[%clk 0:00:06]}  Nxb8 {[%clk 0:00:04]} 60. Kxb3 {[%clk 0:00:07]}  Kb5 {[%clk 0:00:04]} 61. Kc3 {[%clk 0:00:08]}  Kc5 {[%clk 0:00:05]} 62. Kd3 {[%clk 0:00:08]}  Kd5 {[%clk 0:00:06]} 63. Ke3 {[%clk 0:00:09]}  Ke5 {[%clk 0:00:07]} 64. Kf3 {[%clk 0:00:09]}  Kf5 {[%clk 0:00:08]} 65. Kg3 {[%clk 0:00:10]}  Kg5 {[%clk 0:00:09]} 66. Kf3 {[%clk 0:00:10]}  Kh5 {[%clk 0:00:10]} 0-1


[Site "https://www.chess.com"]

[Event "Titled Tuesday Blitz April 11 Late 2023"]
[White "Smith, Garrett L"]
[Black "Korkmaz, Necmettin"]
[WhiteFideId "2024829"]
[BlackFideId "6303285"]
[WhiteElo "2047"]
[BlackElo "2097"]
[Result "0-1"]
[Round "09"]
[TimeControl "180+2"]
[Date "2023.04.11"]
[WhiteClock "0:00:40"]
[BlackClock "0:00:45"]

1. e4 {[%clk 0:03:00]}  e5 {[%clk 0:02:58]} 2. Nf3 {[%clk 0:03:00]}  Nc6 {[%clk 0:02:58]} 3. Bc4 {[%clk 0:03:00]}  Bc5 {[%clk 0:02:55]} 4. b4 {[%clk 0:03:00]}  Bxb4 {[%clk 0:02:53]} 5. c3 {[%clk 0:03:01]}  Ba5 {[%clk 0:02:53]} 6. d4 {[%clk 0:02:59]}  exd4 {[%clk 0:02:51]} 7. Qb3 {[%clk 0:02:44]}  Qf6 {[%clk 0:02:33]} 8. Bb2 {[%clk 0:02:44]}  d3 {[%clk 0:02:30]} 9. O-O {[%clk 0:02:42]}  Nge7 {[%clk 0:02:27]} 10. Nbd2 {[%clk 0:02:35]}  O-O {[%clk 0:02:24]} 11. Rfe1 {[%clk 0:02:30]}  d6 {[%clk 0:02:17]} 12. Bxd3 {[%clk 0:02:31]}  Bb6 {[%clk 0:02:12]} 13. c4 {[%clk 0:02:22]}  Ne5 {[%clk 0:02:08]} 14. Re2 {[%clk 0:01:38]}  Bg4 {[%clk 0:01:58]} 15. a4 {[%clk 0:01:32]}  N7c6 {[%clk 0:01:49]} 16. Kh1 {[%clk 0:01:19]}  Qh6 {[%clk 0:01:41]} 17. Qc3 {[%clk 0:01:09]}  Nxf3 {[%clk 0:01:34]} 18. gxf3 {[%clk 0:01:06]}  Bh5 {[%clk 0:01:03]} 19. Rg1 {[%clk 0:00:59]}  f6 {[%clk 0:00:50]} 20. Rg3 {[%clk 0:00:57]}  Nd4 {[%clk 0:00:50]} 21. Re1 {[%clk 0:00:51]}  Nc6 {[%clk 0:00:47]} 22. Kg2 {[%clk 0:00:40]}  Ba5 {[%clk 0:00:46]} 23. Qc2 {[%clk 0:00:40]}  Qxd2 {[%clk 0:00:45]} 0-1


[Site "https://www.chess.com"]

[Event "Titled Tuesday Blitz April 11 Late 2023"]
[White "Ladan, Nicholas"]
[Black "Kostiukov, Alexandr"]
[WhiteFideId "30918855"]
[BlackFideId "14108100"]
[WhiteElo "2167"]
[BlackElo "2202"]
[Result "1-0"]
[Round "09"]
[TimeControl "180+2"]
[Date "2023.04.11"]
[WhiteClock "0:00:06"]
[BlackClock "0:00:01"]

1. e3 {[%clk 0:02:55]}  g6 {[%clk 0:02:58]} 2. c4 {[%clk 0:02:52]}  Bg7 {[%clk 0:02:59]} 3. Nc3 {[%clk 0:02:52]}  c5 {[%clk 0:02:59]} 4. Nge2 {[%clk 0:02:46]}  Nf6 {[%clk 0:02:58]} 5. Ng3 {[%clk 0:02:46]}  O-O {[%clk 0:02:58]} 6. f3 {[%clk 0:02:46]}  d5 {[%clk 0:02:58]} 7. cxd5 {[%clk 0:02:44]}  Nxd5 {[%clk 0:02:59]} 8. Bc4 {[%clk 0:02:42]}  Nxc3 {[%clk 0:02:52]} 9. bxc3 {[%clk 0:02:43]}  e5 {[%clk 0:02:51]} 10. O-O {[%clk 0:02:41]}  Nc6 {[%clk 0:02:45]} 11. a4 {[%clk 0:02:39]}  Kh8 {[%clk 0:02:40]} 12. f4 {[%clk 0:02:25]}  f5 {[%clk 0:02:34]} 13. fxe5 {[%clk 0:01:58]}  Nxe5 {[%clk 0:02:33]} 14. Be2 {[%clk 0:01:54]}  c4 {[%clk 0:02:23]} 15. Ba3 {[%clk 0:01:53]}  Re8 {[%clk 0:02:21]} 16. Bf3 {[%clk 0:01:45]}  Nxf3+ {[%clk 0:02:18]} 17. Rxf3 {[%clk 0:01:43]}  b6 {[%clk 0:02:10]} 18. Ne2 {[%clk 0:01:43]}  Bb7 {[%clk 0:02:09]} 19. Rf4 {[%clk 0:01:39]}  Qd3 {[%clk 0:01:54]} 20. Nd4 {[%clk 0:01:35]}  Rad8 {[%clk 0:01:48]} 21. h4 {[%clk 0:01:18]}  Be5 {[%clk 0:01:40]} 22. Rf2 {[%clk 0:01:12]}  Qe4 {[%clk 0:01:33]} 23. Qf3 {[%clk 0:01:06]}  Qxh4 {[%clk 0:01:09]} 24. Qxb7 {[%clk 0:00:54]}  Qh2+ {[%clk 0:01:09]} 25. Kf1 {[%clk 0:00:54]}  Qh1+ {[%clk 0:01:09]} 26. Ke2 {[%clk 0:00:54]}  Qxa1 {[%clk 0:01:07]} 27. Be7 {[%clk 0:00:50]}  Rb8 {[%clk 0:00:59]} 28. Qd7 {[%clk 0:00:49]}  Qb1 {[%clk 0:00:41]} 29. Rf3 {[%clk 0:00:42]}  Qd3+ {[%clk 0:00:35]} 30. Ke1 {[%clk 0:00:42]}  Qe4 {[%clk 0:00:17]} 31. Rh3 {[%clk 0:00:37]}  h5 {[%clk 0:00:11]} 32. Nf3 {[%clk 0:00:21]}  Bg7 {[%clk 0:00:08]} 33. Bb4 {[%clk 0:00:15]}  f4 {[%clk 0:00:09]} 34. Ng5 {[%clk 0:00:10]}  Qf5 {[%clk 0:00:04]} 35. Qxf5 {[%clk 0:00:09]}  gxf5 {[%clk 0:00:05]} 36. Rxh5+ {[%clk 0:00:09]}  Kg8 {[%clk 0:00:05]} 37. Bd6 {[%clk 0:00:06]}  Rbd8 {[%clk 0:00:01]} 38. Bxf4 {[%clk 0:00:06]} 1-0


[Site "https://www.chess.com"]

[Event "Titled Tuesday Blitz April 11 Late 2023"]
[White "Moreira, Ronaldo Alonso"]
[Black "Mordechai, Hanan"]
[WhiteFideId "2110547"]
[BlackFideId "2804166"]
[WhiteElo "2037"]
[BlackElo "2324"]
[Result "0-1"]
[Round "09"]
[TimeControl "180+2"]
[Date "2023.04.11"]
[WhiteClock "0:00:02"]
[BlackClock "0:00:56"]

1. d4 {[%clk 0:02:58]}  Nf6 {[%clk 0:02:57]} 2. c4 {[%clk 0:02:58]}  e6 {[%clk 0:02:57]} 3. Nc3 {[%clk 0:02:58]}  d5 {[%clk 0:02:54]} 4. cxd5 {[%clk 0:02:57]}  exd5 {[%clk 0:02:54]} 5. Bg5 {[%clk 0:02:58]}  Be6 {[%clk 0:02:54]} 6. e3 {[%clk 0:02:57]}  Be7 {[%clk 0:02:54]} 7. Bd3 {[%clk 0:02:57]}  O-O {[%clk 0:02:53]} 8. Nf3 {[%clk 0:02:57]}  Nbd7 {[%clk 0:02:52]} 9. O-O {[%clk 0:02:56]}  c5 {[%clk 0:02:52]} 10. Rc1 {[%clk 0:02:49]}  c4 {[%clk 0:02:51]} 11. Bb1 {[%clk 0:02:44]}  b5 {[%clk 0:02:52]} 12. Nxb5 {[%clk 0:02:30]}  Qb6 {[%clk 0:02:51]} 13. Nc3 {[%clk 0:02:15]}  Qxb2 {[%clk 0:02:50]} 14. Ne5 {[%clk 0:02:03]}  h6 {[%clk 0:02:23]} 15. Nxd7 {[%clk 0:01:53]}  Bxd7 {[%clk 0:02:24]} 16. Bxf6 {[%clk 0:01:47]}  Bxf6 {[%clk 0:02:23]} 17. Nxd5 {[%clk 0:01:46]}  Bd8 {[%clk 0:02:22]} 18. Rxc4 {[%clk 0:01:09]}  Be6 {[%clk 0:02:22]} 19. Rb4 {[%clk 0:01:04]}  Qa3 {[%clk 0:02:19]} 20. Ra4 {[%clk 0:00:59]}  Qd6 {[%clk 0:02:13]} 21. Nf4 {[%clk 0:00:56]}  Bd7 {[%clk 0:02:12]} 22. Qd3 {[%clk 0:00:47]}  g6 {[%clk 0:02:07]} 23. Ra6 {[%clk 0:00:45]}  Bb6 {[%clk 0:02:00]} 24. a4 {[%clk 0:00:36]}  Bc8 {[%clk 0:01:58]} 25. a5 {[%clk 0:00:26]}  Bxa6 {[%clk 0:01:58]} 26. Qxa6 {[%clk 0:00:26]}  Bc7 {[%clk 0:01:58]} 27. Qxd6 {[%clk 0:00:20]}  Bxd6 {[%clk 0:01:58]} 28. Nd3 {[%clk 0:00:20]}  Rab8 {[%clk 0:01:57]} 29. Ba2 {[%clk 0:00:20]}  Rb5 {[%clk 0:01:56]} 30. a6 {[%clk 0:00:16]}  Ra5 {[%clk 0:01:55]} 31. Bc4 {[%clk 0:00:15]}  Rc8 {[%clk 0:01:55]} 32. Rc1 {[%clk 0:00:14]}  Ra4 {[%clk 0:01:51]} 33. Bxf7+ {[%clk 0:00:12]}  Kxf7 {[%clk 0:01:49]} 34. Rxc8 {[%clk 0:00:12]}  Rxa6 {[%clk 0:01:49]} 35. g3 {[%clk 0:00:09]}  Ke6 {[%clk 0:01:48]} 36. Kg2 {[%clk 0:00:07]}  Kd7 {[%clk 0:01:46]} 37. Rc2 {[%clk 0:00:06]}  Ra3 {[%clk 0:01:44]} 38. Nc1 {[%clk 0:00:04]}  a5 {[%clk 0:01:43]} 39. Ra2 {[%clk 0:00:03]}  Rxa2 {[%clk 0:01:38]} 40. Nxa2 {[%clk 0:00:04]}  Kc6 {[%clk 0:01:39]} 41. Kf3 {[%clk 0:00:04]}  Kb5 {[%clk 0:01:39]} 42. Ke2 {[%clk 0:00:04]}  Kc4 {[%clk 0:01:39]} 43. Kd2 {[%clk 0:00:05]}  Kb3 {[%clk 0:01:40]} 44. Nc1+ {[%clk 0:00:04]}  Kb2 {[%clk 0:01:40]} 45. Nd3+ {[%clk 0:00:04]}  Kb3 {[%clk 0:01:34]} 46. Nc5+ {[%clk 0:00:04]}  Kc4 {[%clk 0:01:19]} 47. Na4 {[%clk 0:00:02]}  g5 {[%clk 0:01:10]} 48. Kc2 {[%clk 0:00:02]}  g4 {[%clk 0:01:10]} 49. Nc3 {[%clk 0:00:02]}  Bb4 {[%clk 0:01:09]} 50. Ne4 {[%clk 0:00:02]}  a4 {[%clk 0:01:06]} 51. Nf6 {[%clk 0:00:02]}  a3 {[%clk 0:01:04]} 52. Nxg4 {[%clk 0:00:02]}  Be1 {[%clk 0:00:56]} 0-1


[Site "https://www.chess.com"]

[Event "Titled Tuesday Blitz April 11 Late 2023"]
[White "Barria Santos, Jose Guilherme"]
[Black "Gonzalez Zamora, Juan Carlos"]
[WhiteFideId "1939300"]
[BlackFideId "3507548"]
[WhiteElo "2266"]
[BlackElo "2535"]
[Result "0-1"]
[Round "09"]
[TimeControl "180+2"]
[Date "2023.04.11"]
[WhiteClock "0:00:04"]
[BlackClock "0:00:28"]

1. e4 {[%clk 0:03:00]}  d6 {[%clk 0:02:59]} 2. d4 {[%clk 0:03:00]}  Nf6 {[%clk 0:02:59]} 3. Nc3 {[%clk 0:03:01]}  e5 {[%clk 0:02:57]} 4. Nf3 {[%clk 0:02:56]}  Nbd7 {[%clk 0:02:56]} 5. Bc4 {[%clk 0:02:55]}  Be7 {[%clk 0:02:56]} 6. O-O {[%clk 0:02:55]}  O-O {[%clk 0:02:56]} 7. Re1 {[%clk 0:02:48]}  exd4 {[%clk 0:02:56]} 8. Nxd4 {[%clk 0:02:47]}  Re8 {[%clk 0:02:52]} 9. Bb3 {[%clk 0:02:35]}  Nc5 {[%clk 0:02:51]} 10. Bf4 {[%clk 0:02:13]}  Nxb3 {[%clk 0:02:47]} 11. axb3 {[%clk 0:02:14]}  Bf8 {[%clk 0:02:28]} 12. Bg5 {[%clk 0:01:57]}  c5 {[%clk 0:02:18]} 13. Ndb5 {[%clk 0:01:49]}  a6 {[%clk 0:02:02]} 14. Nd5 {[%clk 0:01:49]}  Re5 {[%clk 0:01:54]} 15. Nxf6+ {[%clk 0:01:31]}  gxf6 {[%clk 0:01:54]} 16. Bf4 {[%clk 0:01:31]}  Re6 {[%clk 0:01:53]} 17. Nc3 {[%clk 0:01:27]}  Kh8 {[%clk 0:01:53]} 18. Nd5 {[%clk 0:01:27]}  Bg7 {[%clk 0:01:52]} 19. Qf3 {[%clk 0:01:25]}  Bd7 {[%clk 0:01:50]} 20. Rad1 {[%clk 0:01:24]}  Bc6 {[%clk 0:01:50]} 21. Qh3 {[%clk 0:01:14]}  Rc8 {[%clk 0:01:25]} 22. Re3 {[%clk 0:00:51]}  Qe8 {[%clk 0:01:23]} 23. f3 {[%clk 0:00:27]}  f5 {[%clk 0:00:57]} 24. Rde1 {[%clk 0:00:11]}  fxe4 {[%clk 0:00:51]} 25. fxe4 {[%clk 0:00:11]}  Bd4 {[%clk 0:00:44]} 26. Bg5 {[%clk 0:00:06]}  Rg6 {[%clk 0:00:37]} 27. Kh1 {[%clk 0:00:03]}  Rxg5 {[%clk 0:00:30]} 28. Rf3 {[%clk 0:00:04]}  Bxd5 {[%clk 0:00:28]} 0-1


[Site "https://www.chess.com"]

[Event "Titled Tuesday Blitz April 11 Late 2023"]
[White "Gerbelli Neto, Eduardo"]
[Black "Torres Dominguez, David"]
[WhiteFideId "2103281"]
[BlackFideId "2220857"]
[WhiteElo "2178"]
[BlackElo "1999"]
[Result "1-0"]
[Round "09"]
[TimeControl "180+2"]
[Date "2023.04.11"]
[WhiteClock "0:02:41"]
[BlackClock "0:02:06"]

1. e4 {[%clk 0:02:55]}  Nc6 {[%clk 0:02:59]} 2. d4 {[%clk 0:02:54]}  e5 {[%clk 0:03:00]} 3. Nf3 {[%clk 0:02:54]}  exd4 {[%clk 0:02:59]} 4. Nxd4 {[%clk 0:02:55]}  Nf6 {[%clk 0:02:59]} 5. Nc3 {[%clk 0:02:54]}  Bb4 {[%clk 0:02:59]} 6. Nxc6 {[%clk 0:02:53]}  bxc6 {[%clk 0:03:00]} 7. Bd3 {[%clk 0:02:54]}  d5 {[%clk 0:03:00]} 8. e5 {[%clk 0:02:54]}  Ng4 {[%clk 0:02:56]} 9. Bf4 {[%clk 0:02:48]}  g5 {[%clk 0:02:32]} 10. Bg3 {[%clk 0:02:46]}  Qe7 {[%clk 0:02:26]} 11. O-O {[%clk 0:02:42]}  Nxe5 {[%clk 0:02:06]} 12. Bxe5 {[%clk 0:02:41]} 1-0


[Site "https://www.chess.com"]